[Event "Titled Tuesday Blitz November 30 2021"]
[White "Makarian, Rudik"]
[Black "Seo, Jung Min"]
[WhiteFideId "44105681"]
[BlackFideId "1734687"]
[WhiteElo "2486"]
[BlackElo "2472"]
[Result "0-1"]
[Round "04"]
[TimeControl "180+1"]
[Date "2021.11.30"]
[WhiteClock "0:00:01"]
[BlackClock "0:00:36"]

1. d4 {[%clk 0:03:00]}  Nf6 {[%clk 0:03:00]} 2. c4 {[%clk 0:03:01]}  e6 {[%clk 0:03:00]} 3. Nf3 {[%clk 0:03:01]}  d5 {[%clk 0:03:00]} 4. Nc3 {[%clk 0:03:01]}  dxc4 {[%clk 0:02:59]} 5. e4 {[%clk 0:03:01]}  b5 {[%clk 0:02:59]} 6. e5 {[%clk 0:03:02]}  Nd5 {[%clk 0:02:59]} 7. Nxb5 {[%clk 0:03:02]}  Nb6 {[%clk 0:03:00]} 8. Be2 {[%clk 0:03:03]}  Bb4+ {[%clk 0:02:56]} 9. Nc3 {[%clk 0:02:59]}  Nc6 {[%clk 0:02:56]} 10. h4 {[%clk 0:02:49]}  Qd7 {[%clk 0:02:44]} 11. h5 {[%clk 0:02:47]}  h6 {[%clk 0:02:44]} 12. Be3 {[%clk 0:02:39]}  Bb7 {[%clk 0:02:42]} 13. Qc2 {[%clk 0:02:34]}  Ne7 {[%clk 0:02:41]} 14. Rd1 {[%clk 0:02:21]}  Nf5 {[%clk 0:02:35]} 15. O-O {[%clk 0:02:16]}  Nxe3 {[%clk 0:02:33]} 16. fxe3 {[%clk 0:02:17]}  O-O {[%clk 0:02:24]} 17. a3 {[%clk 0:02:02]}  Be7 {[%clk 0:02:14]} 18. e4 {[%clk 0:01:45]}  Rad8 {[%clk 0:02:05]} 19. d5 {[%clk 0:01:18]}  exd5 {[%clk 0:02:04]} 20. exd5 {[%clk 0:01:19]}  Nxd5 {[%clk 0:01:59]} 21. Bxc4 {[%clk 0:01:15]}  Qe6 {[%clk 0:01:55]} 22. Nxd5 {[%clk 0:00:31]}  Bxd5 {[%clk 0:01:55]} 23. Rxd5 {[%clk 0:00:32]}  Rxd5 {[%clk 0:01:54]} 24. Bxd5 {[%clk 0:00:30]}  Qxd5 {[%clk 0:01:54]} 25. Qxc7 {[%clk 0:00:31]}  Bc5+ {[%clk 0:01:53]} 26. Kh2 {[%clk 0:00:31]}  Bb6 {[%clk 0:01:49]} 27. Qd6 {[%clk 0:00:29]}  Qe4 {[%clk 0:01:47]} 28. e6 {[%clk 0:00:18]}  Qxe6 {[%clk 0:01:39]} 29. Qxe6 {[%clk 0:00:17]}  fxe6 {[%clk 0:01:39]} 30. Re1 {[%clk 0:00:18]}  Rf5 {[%clk 0:01:34]} 31. Rxe6 {[%clk 0:00:14]}  Rxh5+ {[%clk 0:01:34]} 32. Kg3 {[%clk 0:00:14]}  Rb5 {[%clk 0:01:34]} 33. Re2 {[%clk 0:00:12]}  Kh7 {[%clk 0:01:31]} 34. b4 {[%clk 0:00:11]}  a5 {[%clk 0:01:30]} 35. Rb2 {[%clk 0:00:11]}  axb4 {[%clk 0:01:23]} 36. a4 {[%clk 0:00:08]}  Bc7+ {[%clk 0:01:22]} 37. Kf2 {[%clk 0:00:06]}  Rb8 {[%clk 0:01:22]} 38. Ke3 {[%clk 0:00:05]}  Bd6 {[%clk 0:01:16]} 39. Nd4 {[%clk 0:00:04]}  Bc5 {[%clk 0:01:15]} 40. Rb3 {[%clk 0:00:01]}  Rd8 {[%clk 0:01:12]} 41. Rd3 {[%clk 0:00:02]}  b3 {[%clk 0:01:12]} 42. Rxb3 {[%clk 0:00:02]}  Rxd4 {[%clk 0:01:11]} 43. Rb5 {[%clk 0:00:02]}  Ba7 {[%clk 0:00:51]} 44. Kf3 {[%clk 0:00:01]}  Rxa4 {[%clk 0:00:51]} 45. g4 {[%clk 0:00:02]}  Ra3+ {[%clk 0:00:51]} 46. Kg2 {[%clk 0:00:02]}  Bd4 {[%clk 0:00:50]} 47. g5 {[%clk 0:00:02]}  h5 {[%clk 0:00:50]} 48. Kh2 {[%clk 0:00:02]}  Re3 {[%clk 0:00:49]} 49. Rd5 {[%clk 0:00:03]}  Be5+ {[%clk 0:00:49]} 50. Kg2 {[%clk 0:00:04]}  Kg6 {[%clk 0:00:48]} 51. Rd7 {[%clk 0:00:03]}  Kxg5 {[%clk 0:00:47]} 52. Rf7 {[%clk 0:00:03]}  Bf6 {[%clk 0:00:46]} 53. Rb7 {[%clk 0:00:03]}  Re7 {[%clk 0:00:46]} 54. Rb5+ {[%clk 0:00:03]}  Re5 {[%clk 0:00:45]} 55. Rb8 {[%clk 0:00:03]}  g6 {[%clk 0:00:45]} 56. Rb4 {[%clk 0:00:04]}  h4 {[%clk 0:00:45]} 57. Rb7 {[%clk 0:00:05]}  Kh5 {[%clk 0:00:45]} 58. Rb6 {[%clk 0:00:03]}  Rf5 {[%clk 0:00:44]} 59. Kh3 {[%clk 0:00:03]}  g5 {[%clk 0:00:44]} 60. Rb4 {[%clk 0:00:03]}  g4+ {[%clk 0:00:43]} 61. Kg2 {[%clk 0:00:04]}  h3+ {[%clk 0:00:43]} 62. Kh1 {[%clk 0:00:04]}  g3 {[%clk 0:00:42]} 63. Rb1 {[%clk 0:00:01]}  g2+ {[%clk 0:00:41]} 64. Kh2 {[%clk 0:00:01]}  Bd4 {[%clk 0:00:38]} 65. Kxh3 {[%clk 0:00:01]}  g1=Q {[%clk 0:00:36]} 66. Rxg1 {[%clk 0:00:01]} 0-1


[Site "https://www.chess.com"]

[Event "Titled Tuesday Blitz November 30 2021"]
[White "Mitrabha, Guha"]
[Black "Drygalov, Sergey"]
[WhiteFideId "5057000"]
[BlackFideId "24171743"]
[WhiteElo "2334"]
[BlackElo "2514"]
[Result "1-0"]
[Round "04"]
[TimeControl "180+1"]
[Date "2021.11.30"]
[WhiteClock "0:01:36"]
[BlackClock "0:00:03"]

1. d4 {[%clk 0:03:00]}  Nf6 {[%clk 0:02:57]} 2. Bf4 {[%clk 0:03:00]}  d5 {[%clk 0:02:55]} 3. e3 {[%clk 0:03:00]}  e6 {[%clk 0:02:55]} 4. Nf3 {[%clk 0:03:00]}  c5 {[%clk 0:02:56]} 5. Nbd2 {[%clk 0:03:00]}  Nc6 {[%clk 0:02:56]} 6. c3 {[%clk 0:03:00]}  cxd4 {[%clk 0:02:55]} 7. exd4 {[%clk 0:03:00]}  Nh5 {[%clk 0:02:56]} 8. Bg5 {[%clk 0:02:59]}  f6 {[%clk 0:02:55]} 9. Be3 {[%clk 0:02:59]}  Bd6 {[%clk 0:02:54]} 10. Bd3 {[%clk 0:02:47]}  Nf4 {[%clk 0:02:50]} 11. Bxf4 {[%clk 0:02:45]}  Bxf4 {[%clk 0:02:50]} 12. O-O {[%clk 0:02:46]}  O-O {[%clk 0:02:50]} 13. Re1 {[%clk 0:02:46]}  g6 {[%clk 0:02:45]} 14. Nf1 {[%clk 0:02:40]}  Kg7 {[%clk 0:02:45]} 15. g3 {[%clk 0:02:35]}  Bc7 {[%clk 0:02:39]} 16. Bc2 {[%clk 0:02:29]}  e5 {[%clk 0:02:31]} 17. Ne3 {[%clk 0:02:22]}  e4 {[%clk 0:02:30]} 18. Nd2 {[%clk 0:02:23]}  f5 {[%clk 0:02:30]} 19. f4 {[%clk 0:02:22]}  Be6 {[%clk 0:02:21]} 20. Rf1 {[%clk 0:02:22]}  Kh8 {[%clk 0:02:16]} 21. Qe2 {[%clk 0:02:17]}  a6 {[%clk 0:02:13]} 22. Kh1 {[%clk 0:02:16]}  b5 {[%clk 0:02:13]} 23. Nb3 {[%clk 0:02:14]}  Bb6 {[%clk 0:01:58]} 24. Rad1 {[%clk 0:02:10]}  Qe7 {[%clk 0:01:58]} 25. a3 {[%clk 0:02:08]}  Rfd8 {[%clk 0:01:52]} 26. Nc1 {[%clk 0:02:05]}  Rab8 {[%clk 0:01:50]} 27. b4 {[%clk 0:02:05]}  a5 {[%clk 0:01:30]} 28. Nb3 {[%clk 0:02:05]}  a4 {[%clk 0:01:30]} 29. Nc5 {[%clk 0:02:05]}  Bxc5 {[%clk 0:01:30]} 30. dxc5 {[%clk 0:02:05]}  d4 {[%clk 0:01:29]} 31. cxd4 {[%clk 0:02:04]}  Nxd4 {[%clk 0:01:28]} 32. Qe1 {[%clk 0:02:05]}  Qg7 {[%clk 0:01:12]} 33. Qc3 {[%clk 0:02:04]}  Nf3 {[%clk 0:01:04]} 34. Qxg7+ {[%clk 0:02:03]}  Kxg7 {[%clk 0:01:05]} 35. Rxd8 {[%clk 0:02:03]}  Rxd8 {[%clk 0:01:05]} 36. Rd1 {[%clk 0:02:04]}  Rd4 {[%clk 0:00:53]} 37. Kg2 {[%clk 0:01:59]}  Kf6 {[%clk 0:00:53]} 38. Kf2 {[%clk 0:01:59]}  Ke7 {[%clk 0:00:51]} 39. Rxd4 {[%clk 0:01:57]}  Nxd4 {[%clk 0:00:51]} 40. Bd1 {[%clk 0:01:58]}  Bb3 {[%clk 0:00:50]} 41. Ke1 {[%clk 0:01:58]}  Kd7 {[%clk 0:00:45]} 42. Be2 {[%clk 0:01:54]}  Kc6 {[%clk 0:00:39]} 43. Kd2 {[%clk 0:01:54]}  Be6 {[%clk 0:00:35]} 44. h3 {[%clk 0:01:50]}  h6 {[%clk 0:00:35]} 45. h4 {[%clk 0:01:48]}  Bf7 {[%clk 0:00:31]} 46. Bd1 {[%clk 0:01:48]}  Bb3 {[%clk 0:00:30]} 47. Kc3 {[%clk 0:01:48]}  Nf3 {[%clk 0:00:15]} 48. Bxf3 {[%clk 0:01:47]}  exf3 {[%clk 0:00:15]} 49. Kd2 {[%clk 0:01:48]}  Ba2 {[%clk 0:00:06]} 50. h5 {[%clk 0:01:45]}  gxh5 {[%clk 0:00:05]} 51. Nxf5 {[%clk 0:01:43]}  Kd5 {[%clk 0:00:06]} 52. Ke3 {[%clk 0:01:39]}  Bb1 {[%clk 0:00:06]} 53. Nd6 {[%clk 0:01:37]}  h4 {[%clk 0:00:03]} 54. gxh4 {[%clk 0:01:36]} 1-0


[Site "https://www.chess.com"]

[Event "Titled Tuesday Blitz November 30 2021"]
[White "Nakamura, Hikaru"]
[Black "Awatramani, Janak"]
[WhiteFideId "2016192"]
[BlackFideId "2608359"]
[WhiteElo "2884"]
[BlackElo "2819"]
[Result "1/2-1/2"]
[Round "04"]
[TimeControl "180+1"]
[Date "2021.11.30"]
[WhiteClock "0:00:22"]
[BlackClock "0:00:05"]

1. Nf3 {[%clk 0:03:00]}  e6 {[%clk 0:03:00]} 2. e4 {[%clk 0:03:00]}  b6 {[%clk 0:03:01]} 3. d4 {[%clk 0:03:00]}  Bb7 {[%clk 0:03:01]} 4. Bd3 {[%clk 0:03:01]}  Nf6 {[%clk 0:03:02]} 5. Nbd2 {[%clk 0:02:59]}  d5 {[%clk 0:03:02]} 6. e5 {[%clk 0:03:00]}  Nfd7 {[%clk 0:03:03]} 7. c3 {[%clk 0:03:00]}  Be7 {[%clk 0:03:03]} 8. O-O {[%clk 0:03:01]}  c5 {[%clk 0:03:04]} 9. Re1 {[%clk 0:03:01]}  Nc6 {[%clk 0:03:05]} 10. a3 {[%clk 0:03:02]}  g5 {[%clk 0:03:04]} 11. g4 {[%clk 0:02:58]}  h5 {[%clk 0:03:04]} 12. h3 {[%clk 0:02:59]}  hxg4 {[%clk 0:03:05]} 13. hxg4 {[%clk 0:02:59]}  Qc7 {[%clk 0:03:05]} 14. b4 {[%clk 0:02:58]}  a6 {[%clk 0:03:04]} 15. Nf1 {[%clk 0:02:57]}  O-O-O {[%clk 0:03:03]} 16. bxc5 {[%clk 0:02:57]}  bxc5 {[%clk 0:03:02]} 17. Ng3 {[%clk 0:02:55]}  Rdg8 {[%clk 0:03:02]} 18. Rb1 {[%clk 0:02:54]}  Rh3 {[%clk 0:02:37]} 19. Kg2 {[%clk 0:02:53]}  Rh4 {[%clk 0:02:37]} 20. Be3 {[%clk 0:02:31]}  Rxg4 {[%clk 0:02:26]} 21. Kf1 {[%clk 0:02:29]}  Rh8 {[%clk 0:02:16]} 22. Ke2 {[%clk 0:02:26]}  Qa5 {[%clk 0:02:05]} 23. Qc1 {[%clk 0:02:22]}  c4 {[%clk 0:01:59]} 24. Bc2 {[%clk 0:02:23]}  Qxc3 {[%clk 0:01:59]} 25. Qd2 {[%clk 0:02:13]}  Qxa3 {[%clk 0:01:50]} 26. Ra1 {[%clk 0:02:13]}  Qb4 {[%clk 0:01:49]} 27. Qc1 {[%clk 0:02:12]}  f6 {[%clk 0:01:16]} 28. exf6 {[%clk 0:02:05]}  Bxf6 {[%clk 0:01:14]} 29. Kf1 {[%clk 0:02:01]}  Qd6 {[%clk 0:00:52]} 30. Qa3 {[%clk 0:01:58]}  Qc7 {[%clk 0:00:45]} 31. Kg2 {[%clk 0:01:55]}  Rgh4 {[%clk 0:00:29]} 32. Nxh4 {[%clk 0:01:52]}  gxh4 {[%clk 0:00:30]} 33. Ne2 {[%clk 0:01:53]}  h3+ {[%clk 0:00:29]} 34. Kh1 {[%clk 0:01:52]}  e5 {[%clk 0:00:26]} 35. Rad1 {[%clk 0:01:51]}  e4 {[%clk 0:00:25]} 36. Rg1 {[%clk 0:01:42]}  Be7 {[%clk 0:00:22]} 37. Qc1 {[%clk 0:01:41]}  Bd6 {[%clk 0:00:21]} 38. Rg7 {[%clk 0:01:37]}  Nb4 {[%clk 0:00:20]} 39. Ba4 {[%clk 0:01:37]}  Bc6 {[%clk 0:00:20]} 40. Bxc6 {[%clk 0:01:26]}  Qxc6 {[%clk 0:00:21]} 41. Rdg1 {[%clk 0:01:26]}  Nd3 {[%clk 0:00:21]} 42. Qb1 {[%clk 0:01:24]}  Rf8 {[%clk 0:00:20]} 43. Rg8 {[%clk 0:01:23]}  Qb5 {[%clk 0:00:21]} 44. Rxf8+ {[%clk 0:01:15]}  Bxf8 {[%clk 0:00:21]} 45. Nc3 {[%clk 0:01:16]}  Qxb1 {[%clk 0:00:21]} 46. Rxb1 {[%clk 0:01:17]}  Nb4 {[%clk 0:00:18]} 47. Kh2 {[%clk 0:01:16]}  a5 {[%clk 0:00:18]} 48. Kxh3 {[%clk 0:01:16]}  Nb6 {[%clk 0:00:19]} 49. Ra1 {[%clk 0:01:16]}  Nc6 {[%clk 0:00:15]} 50. Kg4 {[%clk 0:01:15]}  Bb4 {[%clk 0:00:16]} 51. Na2 {[%clk 0:01:15]}  Kd7 {[%clk 0:00:15]} 52. f3 {[%clk 0:01:15]}  exf3 {[%clk 0:00:15]} 53. Kxf3 {[%clk 0:01:16]}  Nc8 {[%clk 0:00:14]} 54. Nc1 {[%clk 0:01:12]}  Nd6 {[%clk 0:00:14]} 55. Ne2 {[%clk 0:01:13]}  Nb5 {[%clk 0:00:14]} 56. Kg4 {[%clk 0:01:10]}  Ke6 {[%clk 0:00:14]} 57. Nf4+ {[%clk 0:01:10]}  Kd6 {[%clk 0:00:15]} 58. Ne2 {[%clk 0:01:10]}  Kd7 {[%clk 0:00:15]} 59. Kf3 {[%clk 0:01:09]}  Bd6 {[%clk 0:00:13]} 60. Bf2 {[%clk 0:01:08]}  Be7 {[%clk 0:00:13]} 61. Be3 {[%clk 0:01:05]}  Bf6 {[%clk 0:00:13]} 62. Kf4 {[%clk 0:00:59]}  Kd6 {[%clk 0:00:09]} 63. Kf3 {[%clk 0:00:54]}  Nbxd4+ {[%clk 0:00:09]} 64. Bxd4 {[%clk 0:00:54]}  Bxd4 {[%clk 0:00:10]} 65. Rh1 {[%clk 0:00:54]}  Ne5+ {[%clk 0:00:07]} 66. Kg3 {[%clk 0:00:52]}  Be3 {[%clk 0:00:06]} 67. Ra1 {[%clk 0:00:52]}  Nc6 {[%clk 0:00:07]} 68. Kf3 {[%clk 0:00:51]}  Bc5 {[%clk 0:00:07]} 69. Rh1 {[%clk 0:00:48]}  Bb4 {[%clk 0:00:07]} 70. Nf4 {[%clk 0:00:47]}  Ne5+ {[%clk 0:00:06]} 71. Ke3 {[%clk 0:00:47]}  Bc5+ {[%clk 0:00:07]} 72. Ke2 {[%clk 0:00:47]}  d4 {[%clk 0:00:04]} 73. Rh6+ {[%clk 0:00:47]}  Kd7 {[%clk 0:00:04]} 74. Rh5 {[%clk 0:00:41]}  d3+ {[%clk 0:00:04]} 75. Kd1 {[%clk 0:00:41]}  Bd6 {[%clk 0:00:03]} 76. Nd5 {[%clk 0:00:39]}  Ke6 {[%clk 0:00:03]} 77. Nf4+ {[%clk 0:00:36]}  Kd7 {[%clk 0:00:04]} 78. Nd5 {[%clk 0:00:37]}  a4 {[%clk 0:00:04]} 79. Nb6+ {[%clk 0:00:37]}  Kc6 {[%clk 0:00:05]} 80. Nxa4 {[%clk 0:00:38]}  Kd5 {[%clk 0:00:04]} 81. Nc3+ {[%clk 0:00:38]}  Kd4 {[%clk 0:00:04]} 82. Nb5+ {[%clk 0:00:38]}  Kd5 {[%clk 0:00:04]} 83. Nc3+ {[%clk 0:00:39]}  Kd4 {[%clk 0:00:04]} 84. Nb1 {[%clk 0:00:39]}  Nf3 {[%clk 0:00:03]} 85. Rf5 {[%clk 0:00:37]}  Ke4 {[%clk 0:00:03]} 86. Rf7 {[%clk 0:00:36]}  Be5 {[%clk 0:00:04]} 87. Re7 {[%clk 0:00:29]}  Kd4 {[%clk 0:00:04]} 88. Rd7+ {[%clk 0:00:29]}  Ke4 {[%clk 0:00:04]} 89. Re7 {[%clk 0:00:30]}  Kd4 {[%clk 0:00:05]} 90. Re8 {[%clk 0:00:20]}  c3 {[%clk 0:00:04]} 91. Na3 {[%clk 0:00:20]}  c2+ {[%clk 0:00:02]} 92. Nxc2+ {[%clk 0:00:21]}  dxc2+ {[%clk 0:00:03]} 93. Kxc2 {[%clk 0:00:22]}  Ke4 {[%clk 0:00:04]} 94. Kb3 {[%clk 0:00:22]}  Nd4+ {[%clk 0:00:04]} 95. Kc4 {[%clk 0:00:22]}  Nf5 {[%clk 0:00:05]} 96. Rxe5+ {[%clk 0:00:22]}  Kxe5 {[%clk 0:00:05]} 1/2-1/2


[Site "https://www.chess.com"]

[Event "Titled Tuesday Blitz November 30 2021"]
[White "Ostrovskiy, Aleksandr"]
[Black "Borsuk, Konstantin"]
[WhiteFideId "2034239"]
[BlackFideId "14113406"]
[WhiteElo "2340"]
[BlackElo "2406"]
[Result "1-0"]
[Round "04"]
[TimeControl "180+1"]
[Date "2021.11.30"]
[WhiteClock "0:00:03"]
[BlackClock "0:01:24"]

1. e4 {[%clk 0:03:00]}  e6 {[%clk 0:02:59]} 2. d4 {[%clk 0:02:59]}  d5 {[%clk 0:02:59]} 3. Bd3 {[%clk 0:02:59]}  dxe4 {[%clk 0:02:58]} 4. Bxe4 {[%clk 0:03:00]}  Nf6 {[%clk 0:02:58]} 5. Bf3 {[%clk 0:03:01]}  c5 {[%clk 0:02:59]} 6. Ne2 {[%clk 0:03:00]}  Nc6 {[%clk 0:02:59]} 7. Be3 {[%clk 0:03:00]}  cxd4 {[%clk 0:02:57]} 8. Nxd4 {[%clk 0:02:57]}  Ne5 {[%clk 0:02:57]} 9. Nc3 {[%clk 0:02:57]}  Bb4 {[%clk 0:02:54]} 10. Nb5 {[%clk 0:02:53]}  Bd7 {[%clk 0:02:53]} 11. Nd6+ {[%clk 0:02:35]}  Ke7 {[%clk 0:02:51]} 12. Ne4 {[%clk 0:01:03]}  Bc6 {[%clk 0:02:36]} 13. Nxf6 {[%clk 0:00:26]}  Nxf3+ {[%clk 0:02:32]} 14. gxf3 {[%clk 0:00:23]}  Qxd1+ {[%clk 0:02:28]} 15. Rxd1 {[%clk 0:00:19]}  gxf6 {[%clk 0:02:27]} 16. Ke2 {[%clk 0:00:18]}  Rhd8 {[%clk 0:02:18]} 17. Ne4 {[%clk 0:00:18]}  b6 {[%clk 0:02:14]} 18. c3 {[%clk 0:00:18]}  Bb5+ {[%clk 0:02:10]} 19. Ke1 {[%clk 0:00:15]}  Bd6 {[%clk 0:02:09]} 20. Nxd6 {[%clk 0:00:14]}  Rxd6 {[%clk 0:02:09]} 21. Rxd6 {[%clk 0:00:13]}  Kxd6 {[%clk 0:02:10]} 22. Rg1 {[%clk 0:00:14]}  e5 {[%clk 0:02:08]} 23. Rg7 {[%clk 0:00:12]}  Ke6 {[%clk 0:02:08]} 24. Rxh7 {[%clk 0:00:11]}  Rg8 {[%clk 0:02:06]} 25. b3 {[%clk 0:00:09]}  f5 {[%clk 0:02:04]} 26. c4 {[%clk 0:00:09]}  Bc6 {[%clk 0:02:03]} 27. f4 {[%clk 0:00:09]}  Rg1+ {[%clk 0:01:58]} 28. Kd2 {[%clk 0:00:09]}  Ra1 {[%clk 0:01:58]} 29. Rh6+ {[%clk 0:00:08]}  f6 {[%clk 0:01:58]} 30. fxe5 {[%clk 0:00:08]}  Kxe5 {[%clk 0:01:59]} 31. Kc3 {[%clk 0:00:06]}  Rxa2 {[%clk 0:01:56]} 32. Bd4+ {[%clk 0:00:06]}  Kf4 {[%clk 0:01:55]} 33. Rxf6 {[%clk 0:00:06]}  Be4 {[%clk 0:01:56]} 34. Be3+ {[%clk 0:00:05]}  Kg4 {[%clk 0:01:52]} 35. Rg6+ {[%clk 0:00:05]}  Kh3 {[%clk 0:01:50]} 36. Rh6+ {[%clk 0:00:04]}  Kg2 {[%clk 0:01:50]} 37. h4 {[%clk 0:00:04]}  a5 {[%clk 0:01:47]} 38. h5 {[%clk 0:00:03]}  Rc2+ {[%clk 0:01:45]} 39. Kd4 {[%clk 0:00:03]}  Rb2 {[%clk 0:01:43]} 40. Kc3 {[%clk 0:00:04]}  Rc2+ {[%clk 0:01:43]} 41. Kd4 {[%clk 0:00:05]}  Bf3 {[%clk 0:01:41]} 42. Rg6+ {[%clk 0:00:04]}  Kf1 {[%clk 0:01:38]} 43. h6 {[%clk 0:00:05]}  Rb2 {[%clk 0:01:34]} 44. h7 {[%clk 0:00:05]}  Rxb3 {[%clk 0:01:35]} 45. h8=Q {[%clk 0:00:05]}  a4 {[%clk 0:01:35]} 46. Rh6 {[%clk 0:00:04]}  a3 {[%clk 0:01:35]} 47. Rh1+ {[%clk 0:00:04]}  Ke2 {[%clk 0:01:34]} 48. Ra1 {[%clk 0:00:04]}  Be4 {[%clk 0:01:32]} 49. Qh2 {[%clk 0:00:03]}  Rd3+ {[%clk 0:01:32]} 50. Ke5 {[%clk 0:00:04]}  Rc3 {[%clk 0:01:29]} 51. Qg1 {[%clk 0:00:04]}  Rxc4 {[%clk 0:01:24]} 52. Qd1# {[%clk 0:00:03]} 1-0


[Site "https://www.chess.com"]

[Event "Titled Tuesday Blitz November 30 2021"]
[White "Ozen, Bahadir"]
[Black "Goryachkina, Aleksandra"]
[WhiteFideId "6337058"]
[BlackFideId "4147103"]
[WhiteElo "2503"]
[BlackElo "2441"]
[Result "0-1"]
[Round "04"]
[TimeControl "180+1"]
[Date "2021.11.30"]
[WhiteClock "0:00:10"]
[BlackClock "0:00:05"]

1. Nf3 {[%clk 0:03:00]}  Nf6 {[%clk 0:02:58]} 2. e3 {[%clk 0:03:01]}  d5 {[%clk 0:02:57]} 3. c4 {[%clk 0:03:00]}  e6 {[%clk 0:02:55]} 4. Nc3 {[%clk 0:03:00]}  b6 {[%clk 0:02:53]} 5. cxd5 {[%clk 0:02:56]}  exd5 {[%clk 0:02:53]} 6. g3 {[%clk 0:02:57]}  Bd6 {[%clk 0:02:49]} 7. Bg2 {[%clk 0:02:54]}  O-O {[%clk 0:02:48]} 8. O-O {[%clk 0:02:53]}  c6 {[%clk 0:02:37]} 9. b3 {[%clk 0:02:39]}  Bg4 {[%clk 0:02:19]} 10. h3 {[%clk 0:02:38]}  Bh5 {[%clk 0:02:19]} 11. Bb2 {[%clk 0:02:35]}  Nbd7 {[%clk 0:02:15]} 12. Ne2 {[%clk 0:02:29]}  Bxf3 {[%clk 0:02:06]} 13. Bxf3 {[%clk 0:02:28]}  Ne5 {[%clk 0:02:03]} 14. Bg2 {[%clk 0:02:27]}  Nd3 {[%clk 0:02:01]} 15. Qc2 {[%clk 0:02:13]}  Nxb2 {[%clk 0:01:59]} 16. Qxb2 {[%clk 0:02:14]}  Rc8 {[%clk 0:01:53]} 17. Rac1 {[%clk 0:02:09]}  Qd7 {[%clk 0:01:52]} 18. d3 {[%clk 0:01:59]}  Rfe8 {[%clk 0:01:50]} 19. Rfd1 {[%clk 0:01:57]}  Be5 {[%clk 0:01:32]} 20. Qd2 {[%clk 0:01:51]}  Qe7 {[%clk 0:01:29]} 21. b4 {[%clk 0:01:47]}  h5 {[%clk 0:01:25]} 22. Rc2 {[%clk 0:01:25]}  Rc7 {[%clk 0:01:20]} 23. Rdc1 {[%clk 0:01:24]}  Rec8 {[%clk 0:01:20]} 24. Kf1 {[%clk 0:01:20]}  g6 {[%clk 0:01:13]} 25. a3 {[%clk 0:01:18]}  c5 {[%clk 0:01:09]} 26. bxc5 {[%clk 0:01:18]}  bxc5 {[%clk 0:01:09]} 27. Qa5 {[%clk 0:01:04]}  c4 {[%clk 0:01:01]} 28. d4 {[%clk 0:01:05]}  Bd6 {[%clk 0:00:54]} 29. Ra1 {[%clk 0:00:52]}  Rd7 {[%clk 0:00:43]} 30. Nc3 {[%clk 0:00:51]}  Bc7 {[%clk 0:00:40]} 31. Qb5 {[%clk 0:00:44]}  Rcd8 {[%clk 0:00:37]} 32. Bf3 {[%clk 0:00:38]}  Qe6 {[%clk 0:00:32]} 33. Bg2 {[%clk 0:00:38]}  h4 {[%clk 0:00:28]} 34. g4 {[%clk 0:00:38]}  a6 {[%clk 0:00:20]} 35. Qa4 {[%clk 0:00:34]}  Nxg4 {[%clk 0:00:15]} 36. hxg4 {[%clk 0:00:34]}  Qxg4 {[%clk 0:00:16]} 37. Nxd5 {[%clk 0:00:23]}  Rxd5 {[%clk 0:00:12]} 38. Qxc4 {[%clk 0:00:23]}  R5d7 {[%clk 0:00:10]} 39. d5 {[%clk 0:00:18]}  Qg5 {[%clk 0:00:07]} 40. Rd1 {[%clk 0:00:15]}  Bd6 {[%clk 0:00:06]} 41. Bh3 {[%clk 0:00:10]}  Rc7 {[%clk 0:00:06]} 42. Qg4 {[%clk 0:00:09]}  Qxg4 {[%clk 0:00:05]} 43. Bxg4 {[%clk 0:00:10]}  Rxc2 {[%clk 0:00:05]} 0-1


[Site "https://www.chess.com"]

[Event "Titled Tuesday Blitz November 30 2021"]
[White "Perez Ponsa, Federico"]
[Black "Piesik, Piotr"]
[WhiteFideId "117927"]
[BlackFideId "1136194"]
[WhiteElo "2672"]
[BlackElo "2336"]
[Result "1-0"]
[Round "04"]
[TimeControl "180+1"]
[Date "2021.11.30"]
[WhiteClock "0:00:58"]
[BlackClock "0:00:46"]

1. e4 {[%clk 0:03:00]}  g6 {[%clk 0:02:59]} 2. d4 {[%clk 0:03:00]}  Bg7 {[%clk 0:02:59]} 3. Nf3 {[%clk 0:03:00]}  c6 {[%clk 0:02:59]} 4. c3 {[%clk 0:02:47]}  d6 {[%clk 0:02:59]} 5. Bd3 {[%clk 0:02:44]}  Nf6 {[%clk 0:02:59]} 6. O-O {[%clk 0:02:44]}  O-O {[%clk 0:02:59]} 7. Re1 {[%clk 0:02:44]}  Nbd7 {[%clk 0:02:58]} 8. Nbd2 {[%clk 0:02:44]}  e5 {[%clk 0:02:58]} 9. Nf1 {[%clk 0:02:44]}  Re8 {[%clk 0:02:54]} 10. Ng3 {[%clk 0:02:44]}  Qc7 {[%clk 0:02:52]} 11. h3 {[%clk 0:02:43]}  Rb8 {[%clk 0:02:49]} 12. Be3 {[%clk 0:02:41]}  b5 {[%clk 0:02:49]} 13. Qd2 {[%clk 0:02:38]}  a6 {[%clk 0:02:46]} 14. Rad1 {[%clk 0:02:38]}  c5 {[%clk 0:02:45]} 15. dxe5 {[%clk 0:02:35]}  Nxe5 {[%clk 0:02:42]} 16. Nxe5 {[%clk 0:02:34]}  dxe5 {[%clk 0:02:43]} 17. c4 {[%clk 0:02:35]}  Be6 {[%clk 0:02:37]} 18. Rc1 {[%clk 0:02:24]}  Nd7 {[%clk 0:02:30]} 19. b3 {[%clk 0:02:11]}  Red8 {[%clk 0:02:22]} 20. Qe2 {[%clk 0:01:55]}  b4 {[%clk 0:02:22]} 21. Nf5 {[%clk 0:01:48]}  Nf8 {[%clk 0:02:05]} 22. Nxg7 {[%clk 0:01:42]}  Kxg7 {[%clk 0:02:06]} 23. Rf1 {[%clk 0:01:34]}  Rbc8 {[%clk 0:01:37]} 24. f4 {[%clk 0:01:33]}  exf4 {[%clk 0:01:37]} 25. Bxf4 {[%clk 0:01:33]}  Qc6 {[%clk 0:01:25]} 26. Be5+ {[%clk 0:01:32]}  Kg8 {[%clk 0:01:25]} 27. Qe3 {[%clk 0:01:16]}  Nd7 {[%clk 0:01:21]} 28. Bb2 {[%clk 0:01:17]}  Rf8 {[%clk 0:01:12]} 29. Rf2 {[%clk 0:01:12]}  Qc7 {[%clk 0:00:56]} 30. Rcf1 {[%clk 0:01:05]}  Ne5 {[%clk 0:00:56]} 31. Be2 {[%clk 0:00:59]}  Rcd8 {[%clk 0:00:49]} 32. Qg5 {[%clk 0:00:59]}  Nc6 {[%clk 0:00:46]} 33. Bf6 {[%clk 0:00:58]} 1-0


[Site "https://www.chess.com"]